[Event "*** Titled Tuesday Blitz"]
[Site "Chess.com"]
[Date "2021.02.09"]
[Round "8"]
[White "esteban062000"]
[Black "Kale36"]
[Result "0-1"]
[WhiteElo "2144"]
[BlackElo "2241"]
[TimeControl "180+1"]
[EndTime "11:29:36 PST"]
[Termination "Kale36 won by resignation"]

1. Nf3 {[%clk 0:03:00.9]} 1... Nc6 {[%clk 0:02:58.7]} 2. c4 {[%clk 0:03:00.3]}
2... e5 {[%clk 0:02:58.7]} 3. Nc3 {[%clk 0:03:00]} 3... Bc5 {[%clk 0:02:58.7]}
4. d3 {[%clk 0:02:59.6]} 4... d6 {[%clk 0:02:58.9]} 5. g3 {[%clk 0:02:59.4]}
5... Bg4 {[%clk 0:02:58.5]} 6. Bg2 {[%clk 0:02:59.4]} 6... Qd7 {[%clk
0:02:59.1]} 7. Be3 {[%clk 0:02:56.1]} 7... Bxe3 {[%clk 0:02:57.9]} 8. fxe3
{[%clk 0:02:56]} 8... Nge7 {[%clk 0:02:50]} 9. Qd2 {[%clk 0:02:54.5]} 9... O-O
{[%clk 0:02:49]} 10. h3 {[%clk 0:02:44.8]} 10... Bh5 {[%clk 0:02:39.8]} 11.
O-O-O {[%clk 0:02:36.9]} 11... d5 {[%clk 0:02:30.9]} 12. g4 {[%clk 0:02:21.4]}
12... Bg6 {[%clk 0:02:30.2]} 13. cxd5 {[%clk 0:02:16.6]} 13... Nxd5 {[%clk
0:02:31.1]} 14. Nh4 {[%clk 0:02:16.1]} 14... Ndb4 {[%clk 0:02:25.7]} 15. Nxg6
{[%clk 0:02:09.5]} 15... hxg6 {[%clk 0:02:21.3]} 16. a3 {[%clk 0:02:07.5]} 16...
a5 {[%clk 0:02:16.6]} 17. h4 {[%clk 0:01:46.8]} 17... Qe6 {[%clk 0:02:07]} 18.
h5 {[%clk 0:01:34]} 18... g5 {[%clk 0:01:59.1]} 19. h6 {[%clk 0:01:28]} 19...
gxh6 {[%clk 0:01:43.5]} 20. Rh2 {[%clk 0:01:17.5]} 20... Kg7 {[%clk 0:01:43.4]}
21. Rdh1 {[%clk 0:01:15.6]} 21... Rh8 {[%clk 0:01:43.6]} 22. Qe1 {[%clk
0:00:39.1]} 22... Qb3 {[%clk 0:01:37.6]} 23. Qd2 {[%clk 0:00:35.2]} 23... Na2+
{[%clk 0:01:26]} 24. Nxa2 {[%clk 0:00:32.4]} 24... Qxa2 {[%clk 0:01:26.9]} 25.
Kc2 {[%clk 0:00:29.3]} 25... Qe6 {[%clk 0:01:04.3]} 26. Qc3 {[%clk 0:00:26.1]}
26... f6 {[%clk 0:01:01.7]} 27. Be4 {[%clk 0:00:17.7]} 27... Rad8 {[%clk
0:00:56.5]} 28. Bf5 {[%clk 0:00:17.7]} 28... Qd5 {[%clk 0:00:53.7]} 29. e4
{[%clk 0:00:17.2]} 29... Nd4+ {[%clk 0:00:50.5]} 30. Kd1 {[%clk 0:00:15.9]}
30... Qb3+ {[%clk 0:00:50.3]} 31. Ke1 {[%clk 0:00:14.9]} 31... Qxc3+ {[%clk
0:00:50.1]} 32. bxc3 {[%clk 0:00:14.7]} 32... Nb5 {[%clk 0:00:50.4]} 33. Kd2
{[%clk 0:00:14.6]} 33... Nd6 {[%clk 0:00:48.2]} 34. Rb1 {[%clk 0:00:13.6]} 34...
b6 {[%clk 0:00:48.5]} 35. Ke3 {[%clk 0:00:12.2]} 35... Nxf5+ {[%clk 0:00:48.2]}
36. exf5 {[%clk 0:00:12.4]} 36... Rh7 {[%clk 0:00:47.2]} 37. Rb5 {[%clk
0:00:13]} 37... Kf7 {[%clk 0:00:46.8]} 38. c4 {[%clk 0:00:13.1]} 38... Ke7
{[%clk 0:00:47]} 39. c5 {[%clk 0:00:13.7]} 39... Rb8 {[%clk 0:00:46.1]} 40. c6
{[%clk 0:00:13.8]} 40... Kd6 {[%clk 0:00:45.9]} 41. Rh1 {[%clk 0:00:13.8]} 41...
Kxc6 {[%clk 0:00:45.8]} 42. Rb3 {[%clk 0:00:14.1]} 42... Kb7 {[%clk 0:00:45]}
43. Rc3 {[%clk 0:00:14.6]} 43... Rbh8 {[%clk 0:00:44.4]} 44. Rhc1 {[%clk
0:00:15.5]} 44... Rd7 {[%clk 0:00:44.1]} 45. Rc6 {[%clk 0:00:15.9]} 45... Rf7
{[%clk 0:00:42.8]} 46. Re6 {[%clk 0:00:16.2]} 46... h5 {[%clk 0:00:42.5]} 47.
Rh1 {[%clk 0:00:14.5]} 47... h4 {[%clk 0:00:42.6]} 48. Ke4 {[%clk 0:00:14.2]}
48... h3 {[%clk 0:00:42.9]} 49. d4 {[%clk 0:00:14.7]} 49... h2 {[%clk
0:00:43.3]} 50. dxe5 {[%clk 0:00:14.4]} 50... fxe5 {[%clk 0:00:44.2]} 51. Kxe5
{[%clk 0:00:15.3]} 51... Rd7 {[%clk 0:00:43.5]} 52. Rg6 {[%clk 0:00:15]} 52...
Rd2 {[%clk 0:00:43]} 53. e4 {[%clk 0:00:14.8]} 53... Rg2 {[%clk 0:00:42.7]} 54.
Rxg5 {[%clk 0:00:15]} 54... Rg1 {[%clk 0:00:43.2]} 55. Rxh2 {[%clk 0:00:15.1]}
55... Rxh2 {[%clk 0:00:44]} 56. Kf6 {[%clk 0:00:15.9]} 56... Re1 {[%clk
0:00:43.2]} 57. e5 {[%clk 0:00:16.8]} 57... Kc6 {[%clk 0:00:41.7]} 58. e6 {[%clk
0:00:17.7]} 58... Kd6 {[%clk 0:00:41.7]} 59. Kf7 {[%clk 0:00:18.6]} 59... Rf2
{[%clk 0:00:41.1]} 60. Rg6 {[%clk 0:00:19.1]} 60... c5 {[%clk 0:00:38.9]} 61.
e7+ {[%clk 0:00:19.3]} 61... Kd7 {[%clk 0:00:39.3]} 62. Re6 {[%clk 0:00:19.3]}
62... Rxe6 {[%clk 0:00:37.8]} 63. Kg8 {[%clk 0:00:18.2]} 63... Rxe7 {[%clk
0:00:37.9]} 0-1

[Event "*** Titled Tuesday Blitz"]
[Site "Chess.com"]
[Date "2021.02.09"]
[Round "8"]
[White "LubovMarkelova"]
[Black "ega2006"]
[Result "0-1"]
[WhiteElo "2254"]
[BlackElo "2412"]
[TimeControl "180+1"]
[EndTime "11:29:37 PST"]
[Termination "ega2006 won by resignation"]

1. d4 {[%clk 0:03:00.9]} 1... Nf6 {[%clk 0:02:59.4]} 2. Nf3 {[%clk 0:03:00.3]}
2... g6 {[%clk 0:02:59.8]} 3. c4 {[%clk 0:03:00.1]} 3... Bg7 {[%clk 0:03:00.4]}
4. Nc3 {[%clk 0:03:00.7]} 4... d6 {[%clk 0:03:00.8]} 5. e4 {[%clk 0:03:01]} 5...
O-O {[%clk 0:03:01.4]} 6. Be2 {[%clk 0:03:00.8]} 6... Nbd7 {[%clk 0:03:02]} 7.
h3 {[%clk 0:02:56.6]} 7... e5 {[%clk 0:03:02]} 8. d5 {[%clk 0:02:57]} 8... a5
{[%clk 0:03:01.2]} 9. Be3 {[%clk 0:02:55.1]} 9... Ne8 {[%clk 0:02:51.6]} 10. g4
{[%clk 0:02:54.5]} 10... Nc5 {[%clk 0:02:42.7]} 11. Nd2 {[%clk 0:02:33]} 11...
c6 {[%clk 0:02:41.6]} 12. Qc2 {[%clk 0:02:31.5]} 12... Nc7 {[%clk 0:02:39.4]}
13. O-O-O {[%clk 0:02:30.9]} 13... Bd7 {[%clk 0:02:35.4]} 14. dxc6 {[%clk
0:02:27.1]} 14... Bxc6 {[%clk 0:02:30]} 15. Nd5 {[%clk 0:02:25.2]} 15... N7e6
{[%clk 0:02:27.3]} 16. Nb3 {[%clk 0:02:13.8]} 16... Ba4 {[%clk 0:02:19.1]} 17.
Nc3 {[%clk 0:01:59]} 17... Bxb3 {[%clk 0:02:10.6]} 18. axb3 {[%clk 0:01:59.9]}
18... Nd4 {[%clk 0:02:10.7]} 19. Bxd4 {[%clk 0:01:54.4]} 19... exd4 {[%clk
0:02:11.6]} 20. Nb5 {[%clk 0:01:54.5]} 20... Qb6 {[%clk 0:02:09.5]} 21. Bd3
{[%clk 0:01:50.1]} 21... Ne6 {[%clk 0:01:41.7]} 22. Kb1 {[%clk 0:01:37.2]} 22...
Qc5 {[%clk 0:01:39.5]} 23. Qd2 {[%clk 0:01:26.5]} 23... Be5 {[%clk 0:01:35]} 24.
h4 {[%clk 0:01:22.8]} 24... Bf4 {[%clk 0:01:25]} 25. Qe1 {[%clk 0:01:17.9]}
25... Qe5 {[%clk 0:01:02.3]} 26. g5 {[%clk 0:01:00.6]} 26... Rfc8 {[%clk
0:00:58.4]} 27. h5 {[%clk 0:00:43.6]} 27... Bxg5 {[%clk 0:00:56.8]} 28. hxg6
{[%clk 0:00:43.5]} 28... hxg6 {[%clk 0:00:57.7]} 29. Qf1 {[%clk 0:00:41.3]}
29... Kg7 {[%clk 0:00:34.3]} 30. Re1 {[%clk 0:00:20.8]} 30... Rh8 {[%clk
0:00:31.8]} 31. Qg2 {[%clk 0:00:16.3]} 31... a4 {[%clk 0:00:31]} 32. b4 {[%clk
0:00:15.2]} 32... Bd2 {[%clk 0:00:28.4]} 33. Rd1 {[%clk 0:00:08.8]} 33... Bxb4
{[%clk 0:00:27.9]} 34. Rxh8 {[%clk 0:00:08.5]} 34... Rxh8 {[%clk 0:00:27.5]} 35.
Qf3 {[%clk 0:00:05.6]} 35... Rh2 {[%clk 0:00:22.9]} 36. Rg1 {[%clk 0:00:04.1]}
36... Bd2 {[%clk 0:00:20.1]} 37. Kc2 {[%clk 0:00:03.6]} 37... Bf4 {[%clk
0:00:18.7]} 38. Ra1 {[%clk 0:00:04]} 38... Nc5 {[%clk 0:00:17.7]} 39. Rf1 {[%clk
0:00:01.9]} 39... Be3 {[%clk 0:00:16.7]} 40. Qe2 {[%clk 0:00:01.3]} 40... Qf4
{[%clk 0:00:11.6]} 41. Nc7 {[%clk 0:00:01]} 41... Bxf2 {[%clk 0:00:08.2]} 42.
Rxf2 {[%clk 0:00:01.6]} 0-1

[Event "*** Titled Tuesday Blitz"]
[Site "Chess.com"]
[Date "2021.02.09"]
[Round "8"]
[White "bugsbunny444"]
[Black "woodhy"]
[Result "1/2-1/2"]
[WhiteElo "2592"]
[BlackElo "2465"]
[TimeControl "180+1"]
[EndTime "11:29:38 PST"]
[Termination "Game drawn - insufficient material"]

1. Nf3 {[%clk 0:03:00.9]} 1... b6 {[%clk 0:02:58.4]} 2. g3 {[%clk 0:03:00.1]}
2... Bb7 {[%clk 0:02:59.3]} 3. Bg2 {[%clk 0:03:01]} 3... Nf6 {[%clk 0:02:59.3]}
4. O-O {[%clk 0:03:01.2]} 4... g6 {[%clk 0:02:58]} 5. c4 {[%clk 0:03:01.8]} 5...
Bg7 {[%clk 0:02:58.4]} 6. b4 {[%clk 0:03:01.5]} 6... Ne4 {[%clk 0:02:56.8]} 7.
d4 {[%clk 0:03:01.4]} 7... O-O {[%clk 0:02:55.9]} 8. Bb2 {[%clk 0:02:58.2]} 8...
c5 {[%clk 0:02:51.4]} 9. b5 {[%clk 0:02:52.2]} 9... d6 {[%clk 0:02:41.6]} 10.
Qc2 {[%clk 0:02:48.6]} 10... Nd7 {[%clk 0:02:38.5]} 11. d5 {[%clk 0:02:45.9]}
11... Bxb2 {[%clk 0:02:33.4]} 12. Qxb2 {[%clk 0:02:46.2]} 12... a6 {[%clk
0:02:25.6]} 13. a4 {[%clk 0:02:25.7]} 13... axb5 {[%clk 0:02:25.1]} 14. axb5
{[%clk 0:02:26.3]} 14... Rxa1 {[%clk 0:02:22.3]} 15. Qxa1 {[%clk 0:02:26.5]}
15... Qa8 {[%clk 0:02:22.4]} 16. Nbd2 {[%clk 0:02:25.8]} 16... Nxd2 {[%clk
0:02:17.8]} 17. Nxd2 {[%clk 0:02:25.8]} 17... Qxa1 {[%clk 0:02:15.2]} 18. Rxa1
{[%clk 0:02:25.7]} 18... Ra8 {[%clk 0:02:16.1]} 19. Rxa8+ {[%clk 0:02:21]} 19...
Bxa8 {[%clk 0:02:17]} 20. f4 {[%clk 0:02:21.2]} 20... Bb7 {[%clk 0:02:01.3]} 21.
Bh3 {[%clk 0:02:11.2]} 21... Nf8 {[%clk 0:01:32.1]} 22. e4 {[%clk 0:01:56.9]}
22... e6 {[%clk 0:01:30.2]} 23. Kf2 {[%clk 0:01:50.8]} 23... Bc8 {[%clk
0:01:23.8]} 24. e5 {[%clk 0:01:21.1]} 24... dxe5 {[%clk 0:01:12.1]} 25. fxe5
{[%clk 0:01:21.1]} 25... Kg7 {[%clk 0:01:06.9]} 26. Ke3 {[%clk 0:01:03.3]} 26...
Bd7 {[%clk 0:01:03.5]} 27. d6 {[%clk 0:00:51.2]} 27... Bc8 {[%clk 0:00:59.8]}
28. Bg2 {[%clk 0:00:14.2]} 28... Nd7 {[%clk 0:00:58.3]} 29. Kf4 {[%clk
0:00:14.4]} 29... h6 {[%clk 0:00:51.7]} 30. h4 {[%clk 0:00:14.2]} 30... g5+
{[%clk 0:00:48.4]} 31. hxg5 {[%clk 0:00:14.2]} 31... hxg5+ {[%clk 0:00:49.3]}
32. Kxg5 {[%clk 0:00:14.9]} 32... Nxe5 {[%clk 0:00:49.7]} 33. Bc6 {[%clk
0:00:14.6]} 33... Bd7 {[%clk 0:00:46.2]} 34. Kf4 {[%clk 0:00:07.3]} 34... Nxc6
{[%clk 0:00:43.3]} 35. bxc6 {[%clk 0:00:07.3]} 35... Bxc6 {[%clk 0:00:44.2]} 36.
Ke5 {[%clk 0:00:03.1]} 36... Bd7 {[%clk 0:00:43.5]} 37. Ne4 {[%clk 0:00:02.7]}
37... Bc6 {[%clk 0:00:31.4]} 38. Nf6 {[%clk 0:00:03.1]} 38... b5 {[%clk
0:00:26.2]} 39. cxb5 {[%clk 0:00:03.4]} 39... Bxb5 {[%clk 0:00:26.8]} 40. d7
{[%clk 0:00:03.8]} 40... Bxd7 {[%clk 0:00:26.3]} 41. Nxd7 {[%clk 0:00:04.7]}
41... c4 {[%clk 0:00:25.6]} 42. Nc5 {[%clk 0:00:04.6]} 42... c3 {[%clk
0:00:24.7]} 43. Nd3 {[%clk 0:00:04.5]} 43... c2 {[%clk 0:00:24.4]} 44. Kd4
{[%clk 0:00:03.9]} 44... Kf6 {[%clk 0:00:21.1]} 45. Kc3 {[%clk 0:00:03.9]} 45...
Kf5 {[%clk 0:00:19.6]} 46. Kxc2 {[%clk 0:00:04.1]} 46... Kg4 {[%clk 0:00:19.9]}
47. Ne5+ {[%clk 0:00:04.5]} 47... Kxg3 {[%clk 0:00:19.8]} 48. Nxf7 {[%clk
0:00:05.4]} 48... Kf4 {[%clk 0:00:20.4]} 49. Kd3 {[%clk 0:00:05.6]} 49... e5
{[%clk 0:00:19.6]} 50. Nxe5 {[%clk 0:00:05.8]} 1/2-1/2

[Event "*** Titled Tuesday Blitz"]
[Site "Chess.com"]
[Date "2021.02.09"]
[Round "8"]
[White "DvaHrasta"]
[Black "Natalya_Buksa"]
[Result "1/2-1/2"]
[WhiteElo "2425"]
[BlackElo "2563"]
[TimeControl "180+1"]
[EndTime "11:29:38 PST"]
[Termination "Game drawn - insufficient material"]

1. c4 {[%clk 0:03:00.9]} 1... e6 {[%clk 0:02:59.9]} 2. g3 {[%clk 0:03:00.7]}
2... Nf6 {[%clk 0:02:58.3]} 3. Bg2 {[%clk 0:03:00.7]} 3... d5 {[%clk 0:02:58.9]}
4. Nf3 {[%clk 0:03:00.7]} 4... Be7 {[%clk 0:02:59.4]} 5. O-O {[%clk 0:03:00.8]}
5... O-O {[%clk 0:03:00.1]} 6. d4 {[%clk 0:03:01]} 6... dxc4 {[%clk 0:03:00.6]}
7. Ne5 {[%clk 0:03:00.9]} 7... c5 {[%clk 0:03:00]} 8. dxc5 {[%clk 0:02:57.7]}
8... Qc7 {[%clk 0:03:00.3]} 9. Nxc4 {[%clk 0:02:56.5]} 9... Rd8 {[%clk
0:03:00.9]} 10. Qc2 {[%clk 0:02:53.1]} 10... Nc6 {[%clk 0:03:01.2]} 11. Nd6
{[%clk 0:02:37.9]} 11... Nd4 {[%clk 0:02:46.9]} 12. Qd3 {[%clk 0:02:29.4]} 12...
Bxd6 {[%clk 0:02:46.8]} 13. cxd6 {[%clk 0:02:26]} 13... Qxd6 {[%clk 0:02:46.7]}
14. Nc3 {[%clk 0:02:21.4]} 14... e5 {[%clk 0:02:45.5]} 15. Bg5 {[%clk
0:02:02.9]} 15... Bf5 {[%clk 0:02:44]} 16. Qd1 {[%clk 0:01:51.1]} 16... h6
{[%clk 0:02:40.6]} 17. Bxf6 {[%clk 0:01:32]} 17... Qxf6 {[%clk 0:02:40.5]} 18.
Nd5 {[%clk 0:01:14.4]} 18... Qd6 {[%clk 0:02:13.5]} 19. e3 {[%clk 0:01:10.3]}
19... Nc6 {[%clk 0:02:12.2]} 20. Rc1 {[%clk 0:00:59.1]} 20... e4 {[%clk
0:02:08.6]} 21. Nf4 {[%clk 0:00:55.7]} 21... Qe5 {[%clk 0:02:06.2]} 22. Qb3
{[%clk 0:00:54.1]} 22... Na5 {[%clk 0:01:58.5]} 23. Qa3 {[%clk 0:00:50.9]} 23...
b6 {[%clk 0:01:57.2]} 24. b4 {[%clk 0:00:49.1]} 24... Nb7 {[%clk 0:01:53.5]} 25.
h4 {[%clk 0:00:46.2]} 25... a5 {[%clk 0:01:52.8]} 26. h5 {[%clk 0:00:41.8]}
26... Bg4 {[%clk 0:01:47.2]} 27. Rc6 {[%clk 0:00:38.6]} 27... Nd6 {[%clk
0:01:27.9]} 28. bxa5 {[%clk 0:00:33.7]} 28... bxa5 {[%clk 0:01:12.2]} 29. Rfc1
{[%clk 0:00:27.4]} 29... Rac8 {[%clk 0:00:57.4]} 30. Rxc8 {[%clk 0:00:24.7]}
30... Rxc8 {[%clk 0:00:57.4]} 31. Rxc8+ {[%clk 0:00:22.4]} 31... Nxc8 {[%clk
0:00:58.3]} 32. Qb3 {[%clk 0:00:21]} 32... Nd6 {[%clk 0:00:47.9]} 33. Qb8+
{[%clk 0:00:19.8]} 33... Kh7 {[%clk 0:00:48.2]} 34. Qa7 {[%clk 0:00:18.9]} 34...
Bf3 {[%clk 0:00:46.5]} 35. Bxf3 {[%clk 0:00:17.5]} 35... exf3 {[%clk 0:00:47.4]}
36. Qd4 {[%clk 0:00:15.8]} 36... Qxd4 {[%clk 0:00:46.7]} 37. exd4 {[%clk
0:00:16.7]} 37... g5 {[%clk 0:00:46.1]} 38. hxg6+ {[%clk 0:00:16.1]} 38... fxg6
{[%clk 0:00:47]} 39. Kf1 {[%clk 0:00:16.5]} 39... g5 {[%clk 0:00:46.2]} 40. Ne6
{[%clk 0:00:15.5]} 40... Kg6 {[%clk 0:00:46.1]} 41. Ke1 {[%clk 0:00:15.5]} 41...
h5 {[%clk 0:00:46.5]} 42. Kd2 {[%clk 0:00:15.2]} 42... Kf6 {[%clk 0:00:46.2]}
43. Nc5 {[%clk 0:00:14.8]} 43... Nf5 {[%clk 0:00:40.2]} 44. Kd3 {[%clk
0:00:11.4]} 44... h4 {[%clk 0:00:40]} 45. gxh4 {[%clk 0:00:11.2]} 45... gxh4
{[%clk 0:00:39.5]} 46. Ke4 {[%clk 0:00:10.3]} 46... h3 {[%clk 0:00:38.3]} 47.
Kxf3 {[%clk 0:00:10.2]} 47... Nxd4+ {[%clk 0:00:39.2]} 48. Kg3 {[%clk
0:00:10.2]} 48... Ne2+ {[%clk 0:00:36]} 49. Kxh3 {[%clk 0:00:10.1]} 49... Nc3
{[%clk 0:00:36.6]} 50. a4 {[%clk 0:00:09.4]} 50... Ke5 {[%clk 0:00:37.1]} 51.
Kg3 {[%clk 0:00:09.6]} 51... Kd5 {[%clk 0:00:35.2]} 52. Nb3 {[%clk 0:00:09.6]}
52... Nxa4 {[%clk 0:00:34.9]} 53. Nxa5 {[%clk 0:00:09.8]} 53... Nc5 {[%clk
0:00:35.1]} 54. f4 {[%clk 0:00:10.7]} 54... Ke6 {[%clk 0:00:32.8]} 55. Kg4
{[%clk 0:00:11.6]} 55... Kf6 {[%clk 0:00:33.2]} 56. Nc4 {[%clk 0:00:11.7]} 56...
Ne6 {[%clk 0:00:31.6]} 57. Ne5 {[%clk 0:00:12.6]} 57... Nxf4 {[%clk 0:00:31.3]}
1/2-1/2

[Event "*** Titled Tuesday Blitz"]
[Site "Chess.com"]
[Date "2021.02.09"]
[Round "8"]
[White "azikom"]
[Black "korkmaz16"]
[Result "1-0"]
[WhiteElo "2641"]
[BlackElo "2410"]
[TimeControl "180+1"]
[EndTime "11:29:38 PST"]
[Termination "azikom won by resignation"]

1. d4 {[%clk 0:02:59.7]} 1... d5 {[%clk 0:02:59.4]} 2. Nf3 {[%clk 0:02:58.8]}
2... Nf6 {[%clk 0:02:58.7]} 3. Bf4 {[%clk 0:02:59]} 3... c5 {[%clk 0:02:57.3]}
4. e3 {[%clk 0:02:58.2]} 4... Nc6 {[%clk 0:02:57.1]} 5. c3 {[%clk 0:02:57.7]}
5... e6 {[%clk 0:02:56.1]} 6. Nbd2 {[%clk 0:02:56.7]} 6... Bd6 {[%clk
0:02:56.1]} 7. Bg3 {[%clk 0:02:56.2]} 7... O-O {[%clk 0:02:55.1]} 8. Bd3 {[%clk
0:02:55]} 8... b6 {[%clk 0:02:48.9]} 9. Ne5 {[%clk 0:02:54.2]} 9... Bb7 {[%clk
0:02:38.3]} 10. f4 {[%clk 0:02:52]} 10... Ne7 {[%clk 0:02:38.2]} 11. O-O {[%clk
0:02:49]} 11... Ne4 {[%clk 0:02:34.5]} 12. Nxe4 {[%clk 0:02:47.3]} 12... dxe4
{[%clk 0:02:34.3]} 13. Be2 {[%clk 0:02:40.1]} 13... cxd4 {[%clk 0:02:16.8]} 14.
cxd4 {[%clk 0:02:39.8]} 14... Nd5 {[%clk 0:02:12.8]} 15. Bf2 {[%clk 0:02:39]}
15... f6 {[%clk 0:02:08.7]} 16. Nc4 {[%clk 0:02:38.5]} 16... Be7 {[%clk
0:02:07.8]} 17. Rc1 {[%clk 0:02:36.6]} 17... Rc8 {[%clk 0:02:06.8]} 18. a3
{[%clk 0:02:35.5]} 18... b5 {[%clk 0:02:02.8]} 19. Nd2 {[%clk 0:02:34.9]} 19...
Qb6 {[%clk 0:01:57.7]} 20. Qb3 {[%clk 0:02:32.5]} 20... b4 {[%clk 0:01:23.9]}
21. axb4 {[%clk 0:01:56.4]} 21... Qxb4 {[%clk 0:01:17.9]} 22. Qxb4 {[%clk
0:01:55.7]} 22... Nxb4 {[%clk 0:01:16.3]} 23. Bc4 {[%clk 0:01:30]} 23... Bd5
{[%clk 0:01:14.4]} 24. b3 {[%clk 0:01:26.4]} 24... f5 {[%clk 0:01:12.7]} 25. Ra1
{[%clk 0:01:25.5]} 25... a6 {[%clk 0:01:10]} 26. Ra4 {[%clk 0:01:23.1]} 26...
Rc6 {[%clk 0:01:09.1]} 27. Rfa1 {[%clk 0:01:22.3]} 27... Rfc8 {[%clk 0:01:07.4]}
28. h3 {[%clk 0:01:22.3]} 28... Kf7 {[%clk 0:00:58.7]} 29. g4 {[%clk 0:01:22]}
29... g6 {[%clk 0:00:58.6]} 30. Kg2 {[%clk 0:01:21.6]} 30... Rb8 {[%clk
0:00:49.4]} 31. Ra5 {[%clk 0:01:08.1]} 31... Nd3 {[%clk 0:00:41.5]} 32. Rxd5
{[%clk 0:01:04.7]} 32... Rxc4 {[%clk 0:00:37.7]} 33. Nxc4 {[%clk 0:00:58.3]}
33... exd5 {[%clk 0:00:36.8]} 34. Ne5+ {[%clk 0:00:58.8]} 34... Nxe5 {[%clk
0:00:33.8]} 35. dxe5 {[%clk 0:00:51.2]} 35... Rxb3 {[%clk 0:00:33.8]} 36. Rxa6
{[%clk 0:00:50.8]} 36... Rb2 {[%clk 0:00:34]} 37. e6+ {[%clk 0:00:48.7]} 37...
Kf6 {[%clk 0:00:29.6]} 38. Kg3 {[%clk 0:00:41.7]} 38... h6 {[%clk 0:00:18]} 39.
Be1 {[%clk 0:00:39.5]} 39... Rc2 {[%clk 0:00:17.5]} 40. h4 {[%clk 0:00:31.2]}
40... Bc5 {[%clk 0:00:16.1]} 41. g5+ {[%clk 0:00:30.8]} 41... hxg5 {[%clk
0:00:16.2]} 42. hxg5+ {[%clk 0:00:30.1]} 42... Ke7 {[%clk 0:00:17.1]} 43. Rc6
{[%clk 0:00:26.8]} 43... Rc4 {[%clk 0:00:15.6]} 44. Rxc5 {[%clk 0:00:25.4]}
44... Rxc5 {[%clk 0:00:14.5]} 45. Bb4 {[%clk 0:00:25.7]} 45... Kxe6 {[%clk
0:00:14.9]} 46. Bxc5 {[%clk 0:00:25.8]} 1-0

[Event "*** Titled Tuesday Blitz"]
[Site "Chess.com"]
[Date "2021.02.09"]
[Round "8"]
[White "PavelChernomordik"]
[Black "Nachsueb"]
[Result "1-0"]
[WhiteElo "2382"]
[BlackElo "2190"]
[TimeControl "180+1"]
[EndTime "11:29:38 PST"]
[Termination "PavelChernomordik won by resignation"]

1. e4 {[%clk 0:03:00.9]} 1... c5 {[%clk 0:02:59.6]} 2. Nc3 {[%clk 0:03:00.1]}
2... Nc6 {[%clk 0:02:58.1]} 3. Bb5 {[%clk 0:02:59.5]} 3... Nd4 {[%clk
0:02:55.8]} 4. Bc4 {[%clk 0:02:58.9]} 4... e6 {[%clk 0:02:55.4]} 5. Nge2 {[%clk
0:02:58.5]} 5... Nc6 {[%clk 0:02:52.4]} 6. O-O {[%clk 0:02:54.4]} 6... a6 {[%clk
0:02:52.3]} 7. a4 {[%clk 0:02:53.4]} 7... b6 {[%clk 0:02:49.8]} 8. d4 {[%clk
0:02:49.3]} 8... cxd4 {[%clk 0:02:49.8]} 9. Nxd4 {[%clk 0:02:48.7]} 9... Qc7
{[%clk 0:02:48.1]} 10. Bb3 {[%clk 0:02:43.3]} 10... Nf6 {[%clk 0:02:46.8]} 11.
Be3 {[%clk 0:02:40.6]} 11... Bb4 {[%clk 0:02:44.4]} 12. f3 {[%clk 0:02:35.7]}
12... O-O {[%clk 0:02:43.1]} 13. Nce2 {[%clk 0:02:23.2]} 13... Ne5 {[%clk
0:02:29.6]} 14. Bf4 {[%clk 0:02:21.1]} 14... d6 {[%clk 0:02:26.8]} 15. c3 {[%clk
0:02:19.2]} 15... Bc5 {[%clk 0:02:22.9]} 16. Kh1 {[%clk 0:02:18.6]} 16... Ng6
{[%clk 0:02:22.1]} 17. Bg5 {[%clk 0:02:18.1]} 17... Nd7 {[%clk 0:02:17]} 18.
Bxe6 {[%clk 0:02:12.3]} 18... Bxd4 {[%clk 0:01:36.5]} 19. Bxd7 {[%clk
0:02:05.3]} 19... Bxd7 {[%clk 0:01:21.8]} 20. Nxd4 {[%clk 0:02:04.7]} 20... Qc5
{[%clk 0:01:14]} 21. Be3 {[%clk 0:02:03.2]} 21... Qh5 {[%clk 0:01:13.7]} 22. g4
{[%clk 0:01:56.1]} 22... Qe5 {[%clk 0:01:09.4]} 23. Nf5 {[%clk 0:01:53.1]} 23...
Bxf5 {[%clk 0:01:04.4]} 24. gxf5 {[%clk 0:01:51.8]} 24... Ne7 {[%clk 0:01:00.5]}
25. Bxb6 {[%clk 0:01:48.7]} 25... d5 {[%clk 0:00:59.4]} 26. Bd4 {[%clk
0:01:47.7]} 26... Qf4 {[%clk 0:00:53.9]} 27. Rg1 {[%clk 0:01:41.4]} 27... f6
{[%clk 0:00:53]} 28. Rg4 {[%clk 0:01:40]} 28... Qd6 {[%clk 0:00:47.2]} 29. Qg1
{[%clk 0:01:37.4]} 29... Rf7 {[%clk 0:00:46.5]} 30. Bc5 {[%clk 0:01:35]} 30...
Qe5 {[%clk 0:00:40.3]} 31. Bd4 {[%clk 0:01:33.4]} 31... Qd6 {[%clk 0:00:39.5]}
32. Re1 {[%clk 0:01:31.1]} 32... dxe4 {[%clk 0:00:38.1]} 33. fxe4 {[%clk
0:01:29.8]} 33... Rb8 {[%clk 0:00:34.9]} 34. b4 {[%clk 0:01:26.9]} 34... a5
{[%clk 0:00:32.9]} 35. b5 {[%clk 0:01:21.1]} 35... Rc8 {[%clk 0:00:31.5]} 36.
Qg2 {[%clk 0:01:18.6]} 36... Rc7 {[%clk 0:00:25.3]} 37. e5 {[%clk 0:01:12.7]}
37... Qd5 {[%clk 0:00:09.1]} 38. exf6 {[%clk 0:01:09.3]} 38... Qxg2+ {[%clk
0:00:08.2]} 39. Kxg2 {[%clk 0:01:08.6]} 39... Nxf5 {[%clk 0:00:08.4]} 40. Re8+
{[%clk 0:01:03.3]} 40... Rf8 {[%clk 0:00:08.1]} 41. Rxf8+ {[%clk 0:01:01.9]}
41... Kxf8 {[%clk 0:00:08.6]} 42. fxg7+ {[%clk 0:01:01.9]} 42... Kg8 {[%clk
0:00:08.6]} 43. Rf4 {[%clk 0:01:01.2]} 43... Nxd4 {[%clk 0:00:06.8]} 44. cxd4
{[%clk 0:01:00.5]} 44... Rc2+ {[%clk 0:00:05.2]} 45. Kf3 {[%clk 0:00:59.8]}
45... Rc4 {[%clk 0:00:05.5]} 46. d5 {[%clk 0:00:58.3]} 46... Rc3+ {[%clk
0:00:05.9]} 47. Kg4 {[%clk 0:00:57.8]} 47... Kxg7 {[%clk 0:00:06.1]} 48. Rd4
{[%clk 0:00:57.6]} 48... Kg6 {[%clk 0:00:05.4]} 49. d6 {[%clk 0:00:57.1]} 49...
h5+ {[%clk 0:00:05.7]} 50. Kf4 {[%clk 0:00:56.9]} 50... Rh3 {[%clk 0:00:06.4]}
51. d7 {[%clk 0:00:55.1]} 51... Rh4+ {[%clk 0:00:06]} 52. Ke5 {[%clk 0:00:54.6]}
52... Rxh2 {[%clk 0:00:06.7]} 53. d8=Q {[%clk 0:00:53.8]} 53... Re2+ {[%clk
0:00:07.6]} 54. Kd5 {[%clk 0:00:53.2]} 1-0